Cogmind - Beta 13 @@@ ROGUE MODE // 2024.04.21 @ 16:50:02 Player: Biasface Result: Destroyed by G-34 Mercenary with Small Laser Performance ------------- Evolutions (0) 0 Regions Visited (4) 800 Robots Destroyed (30) 150 Value Destroyed (687) 687 Prototype IDs (2) 40 Alien Tech Used (0) 0 Bonus (0) 0 TOTAL SCORE: 1677 Bonus ------- None Cogmind --------- Core Integrity 0/250 Matter 290/300 Energy 259/265 System Corruption 0% Temperature Cool (6) Movement Treading (240) Ox1 Location -9/Mines Parts ------- > --- POWER (1) -------- Improved Ion Engine > --- PROPULSION (2) --- Light Treads Light Treads > --- UTILITY (2) ------ High-capacity Storage Unit Targeting Computer > --- WEAPON (2) ------- Heavy Assault Rifle Grenade Launcher > --- INVENTORY (20) --- Light Ion Engine Improved Ion Engine Light Deuterium Engine Light Treads Aluminum Leg Aluminum Leg Improved Heat Sink Sensor Array Targeting Computer Weapon Shielding Light Armor Plating Tractor Beam Assault Rifle Light Assault Rifle Light Assault Rifle Light Assault Rifle Light Assault Rifle Light Cannon Light Cannon Hammer Peak State ------------ > --- POWER ------------ Improved Ion Engine > --- PROPULSION ------- Light Treads Light Treads > --- UTILITY ---------- High-capacity Storage Unit Signal Interpreter > --- WEAPON ----------- Light Assault Rifle Heavy Assault Rifle > --- INVENTORY -------- Light Ion Engine Improved Ion Engine Aluminum Leg Aluminum Leg Heat Sink Sensor Array Sensor Array Targeting Computer Weapon Shielding Light Armor Plating Tractor Beam Assault Rifle Light Assault Rifle Light Assault Rifle Light Assault Rifle Light Cannon Light Cannon Grenade Launcher Hammer [Rating: 11] Favorites ----------- Power Improved Ion Engine Engine Improved Ion Engine Power Core Light Nuclear Core Propulsion Light Treads Treads Light Treads Leg Aluminum Leg Utility High-capacity Storage Unit Device Improved Terrain Scanner Storage High-capacity Storage Unit Processor Signal Interpreter Weapon Light Assault Rifle Ballistic Gun Light Assault Rifle Launcher Grenade Launcher Build | -11 -10 -10 -10 -9 ------- Run | Yrd Mat Min Exi Min Slots Evolved . | . . . . . Power . | . . . . . Propulsion . | . . . . . Utility . | . . . . . Weapon . | . . . . . Parts Attached 33 | 7 18 7 . 1 Power 6 | 1 3 2 . . Engine 5 | 1 2 2 . . Core 1 | . 1 . . . Reactor . | . . . . . Propulsion 10 | 2 6 2 . . Treads 7 | 2 3 2 . . Leg 3 | . 3 . . . Wheel . | . . . . . Hover . | . . . . . Flight . | . . . . . Utility 5 | 2 2 1 . . Device 1 | 1 . . . . Storage 2 | 1 1 . . . Processor 2 | . 1 1 . . Hackware . | . . . . . Protection . | . . . . . Artifact . | . . . . . Weapon 12 | 2 7 2 . 1 Energy Gun . | . . . . . Energy Cannon . | . . . . . Ballistic Gun 10 | 2 6 2 . . Ballistic Cannon . | . . . . . Launcher 2 | . 1 . . 1 Special Weapon . | . . . . . Impact Weapon . | . . . . . Slashing Weapon . | . . . . . Piercing Weapon . | . . . . . Special Melee Weapon . | . . . . . Unidentified Prototypes . | . . . . . Parts Lost 5 | . 4 1 . . Power 2 | . 2 . . . Propulsion 2 | . 2 . . . Utility . | . . . . . Weapon 1 | . . 1 . . Highest Loss Streak 3 | . 3 1 . . To Critical Strikes . | . . . . . Average Slot Usage (%) 99 | . 99 100 100 . Engine 10 | . 4 14 14 . Core 3 | . 9 . . . Treads 20 | . 24 11 28 . Leg 7 | . 2 16 . . Storage 14 | . 14 14 14 . Processor 13 | . 13 14 14 . Ballistic Gun 27 | . 27 28 28 . Naked Turns . | . . . . . Heaviest Build 51 | 13 49 51 51 . Greatest Support 40 | 40 40 40 40 . Greatest Overweight (x) 4 | 3 4 2 1 . Average Overweight (x) 1 | . . 1 1 . Largest Inventory Capacity 20 | 8 20 20 20 20 Average Capacity 18 | 7 16 20 20 20 Most Carried 20 | 7 14 20 20 20 Average Carried 14 | 3 10 17 20 20 Final Capacity 20 | 8 20 20 20 20 Final Carried 20 | 7 14 20 20 20 Class Distribution -------------------- 100% | Mutant Dominant Class ---------------- Mutant | -10/Materials Mutant | -10/Mines Mutant | -10/Exiles Mutant | -9/Mines Resources | -11 -10 -10 -10 -9 ----------- Run | Yrd Mat Min Exi Min Matter Collected 854 | 277 454 123 . . Remotely . | . . . . . Salvage Created 909 | 81 722 106 . . Parts 66 | 6 52 8 . . Haulers Intercepted 1 | . 1 . . . Recyclers Shooed . | . . . . . Parts Field Recycled . | . . . . . Retrieved Matter . | . . . . . Parts Self-Destructed . | . . . . . Prevented . | . . . . . Kills | -11 -10 -10 -10 -9 ------- Run | Yrd Mat Min Exi Min Combat Hostiles Destroyed 20 | . 16 4 . . Guns 20 | . 16 4 . . Classes Destroyed 7 | 1 6 . . . Worker 1 | . 1 . . . Tunneler 4 | 3 . 1 . . Hauler 1 | . 1 . . . Operator 2 | . 2 . . . Watcher 2 | . 2 . . . Swarmer 6 | . 3 3 . . Grunt 14 | . 13 1 . . Best Kill Streak 5 | 1 5 3 . . Combat Bots Only 5 | . 5 3 . . Max Kills in Single Turn 1 | 1 1 1 . . Gunslinging . | . . . . . Exploded . | . . . . . Melee . | . . . . . Uniques/NPCs Destroyed . | . . . . . Combat | -11 -10 -10 -10 -9 -------- Run | Yrd Mat Min Exi Min Hostile Shots Fired 129 | . 101 26 . 2 Missed 30 | . 24 6 . . Damage Taken 1269 | . 1059 187 . 23 Core 257 | . 228 17 . 12 Absorbed by Shields . | . . . . . Regen/Repaired (Parts) 74 | . 74 . . . Core Remaining (%) 100 | 100 . . . . Volleys Fired 138 | 12 114 12 . . Largest 2 | 2 2 2 . . Hottest 43 | 40 40 43 . . Shots Fired 272 | 24 225 23 . . Gun 269 | 24 222 23 . . Cannon . | . . . . . Launcher 3 | . 3 . . . Special . | . . . . . Kinetic 269 | 24 222 23 . . Thermal . | . . . . . Explosive 3 | . 3 . . . Electromagnetic . | . . . . . Robot Hit Streak 12 | 7 12 3 . . Robot Miss Streak 5 | 3 3 5 . . Penetration Max . | . . . . . Secondary Targets 2 | . 2 . . . Max Gunslinging Chain 1 | . 1 . . . Shots Hit Robots 168 | 13 142 13 . . Core Hits 68 | 5 55 8 . . Critical Kills 1 | . 1 . . . Critical Parts Destroyed 1 | . 1 . . . Critical Strikes 2 | . 2 . . . Destroy 2 | . 2 . . . Melee Attacks . | . . . . . Impact . | . . . . . Slashing . | . . . . . Piercing . | . . . . . Sneak Attacks . | . . . . . Combat Hostiles . | . . . . . Follow-up Attacks . | . . . . . Damage Inflicted 1515 | 119 1255 141 . . Guns 1491 | 119 1246 126 . . Cannons . | . . . . . Explosions . | . . . . . Melee . | . . . . . Ramming 24 | . 9 15 . . Kinetic 1491 | 119 1246 126 . . Thermal . | . . . . . Explosive . | . . . . . Electromagnetic . | . . . . . Impact . | . . . . . Slashing . | . . . . . Piercing . | . . . . . Highest Corruption . | . . . . . Average Corruption . | . . . . . Corruption Purged . | . . . . . Corruption Blocked . | . . . . . Overload Shots . | . . . . . Overflow Damage 15 | . 15 . . . Projectiles . | . . . . . Explosions 15 | . 15 . . . Melee . | . . . . . Knockbacks . | . . . . . Impact . | . . . . . Kinetic . | . . . . . Secondary . | . . . . . Self-Inflicted Damage 189 | . 189 . . . Shots 3 | . 3 . . . Rammed 4 | . 1 3 . . Targets Rammed 6 | . 1 5 . . Kicked 2 | . . 2 . . Crushed . | . . . . . Highest Temperature 42 | . 42 32 . . Average Temperature 8 | . 8 21 . . Received Heat Transfer 477 | . 423 42 . 12 Siege Activations . | . . . . . Robots Corrupted . | . . . . . Combat Hostiles . | . . . . . Parts Fried . | . . . . . Impact Corruptions . | . . . . . Robots Melted . | . . . . . Combat Hostiles . | . . . . . Parts Melted . | . . . . . Heat Transferred . | . . . . . Parts Sabotaged . | . . . . . Parts Stolen . | . . . . . Parts Stripped . | . . . . . Power Chain Reactions . | . . . . . Alert | -11 -10 -10 -10 -9 ------- Run | Yrd Mat Min Exi Min Peak Influence 244 | 15 244 99 . . Initial 94 | . 9 94 . . Average 46 | 8 79 21 . . Maximum Alert Level 1 | . 1 . . . Low Security (%) 97 | 100 94 100 . 100 Level 1 2 | . 5 . . . Level 2 . | . . . . . Level 3 . | . . . . . Level 4 . | . . . . . Level 5 . | . . . . . High Security . | . . . . . Max Security . | . . . . . Squads Dispatched 6 | . 5 1 . . Investigation 3 | . 2 1 . . Extermination . | . . . . . Reinforcement 3 | . 3 . . . Assault . | . . . . . Garrison . | . . . . . Intercept . | . . . . . Searches Triggered . | . . . . . Construction Impeded . | . . . . . Haulers Reinforced . | . . . . . Active Scanning Responses . | . . . . . Cargo Convoy Interrupts . | . . . . . Stealth | -11 -10 -10 -10 -9 --------- Run | Yrd Mat Min Exi Min Distress Signals 2 | . 2 . . . Communications Jammed . | . . . . . Distress Signals . | . . . . . Times Spotted 45 | . 36 6 . 3 Peak Tracking Total 5 | . 5 3 . . Tactical Retreats 1 | . 1 . . . Traps | -11 -10 -10 -10 -9 ------- Run | Yrd Mat Min Exi Min Traps Triggered 3 | . 3 . . . Indirectly . | . . . . . Trap Hack Attempts . | . . . . . Triggered . | . . . . . Disarmed . | . . . . . Reprogrammed . | . . . . . Reused . | . . . . . Traps Extracted . | . . . . . Installed . | . . . . . Triggered . | . . . . . Machines | -11 -10 -10 -10 -9 ---------- Run | Yrd Mat Min Exi Min Machines Disabled 3 | . 3 . . . Max in Single Turn 3 | . 3 . . . Machines Repaired . | . . . . . Machines Dismantled . | . . . . . Machines Sabotaged . | . . . . . Overloaded Fab Kills . | . . . . . Hacking | -11 -10 -10 -10 -9 --------- Run | Yrd Mat Min Exi Min Machines Accessed 13 | . 8 1 4 . Terminals 5 | . 5 . . . Fabricators . | . . . . . Repair Stations 1 | . 1 . . . Recycling Units 2 | . 2 . . . Scanalyzers . | . . . . . Garrison Access . | . . . . . Total Hacks 27 | . 22 1 4 . Successful 18 | . 13 1 4 . Failed 8 | . 8 . . . Catastrophic 1 | . 1 . . . Database Lockouts 1 | . 1 . . . Manual 6 | . 6 . . . Terminals 14 | . 14 . . . Fabricators . | . . . . . Repair Stations 4 | . 4 . . . Recycling Units 4 | . 4 . . . Scanalyzers . | . . . . . Garrison Access . | . . . . . Terminal Hacks 12 | . 7 1 4 . Record 4 | . . . 4 . Robot Analysis 2 | . 2 . . . Prototype ID Bank 1 | . 1 . . . Open Door 1 | . . 1 . . Emergency Access Points 1 | . 1 . . . Dispatch Records 1 | . 1 . . . Investigation Status 1 | . 1 . . . Hauler Manifests 1 | . 1 . . . Fabricator Hacks . | . . . . . Repair Station Hacks 3 | . 3 . . . Scan Component 2 | . 2 . . . Repair 1 | . 1 . . . Recycling Unit Hacks 3 | . 3 . . . Retrieve Components 3 | . 3 . . . Scanalyzer . | . . . . . Garrison Access Hacks . | . . . . . Unauthorized Hacks . | . . . . . Terminals . | . . . . . Fabricators . | . . . . . Repair Stations . | . . . . . Recycling Units . | . . . . . Scanalyzers . | . . . . . Garrison Access . | . . . . . Data Cores Recovered . | . . . . . Used . | . . . . . Hacking Detections 5 | . 5 . . . Full Trace Events . | . . . . . Feedback Events . | . . . . . Feedback Blocked . | . . . . . Robot Schematics Acquired . | . . . . . Robots Built . | . . . . . Authchips . | . . . . . Time . | . . . . . Total Robot Build Rating . | . . . . . Part Schematics Acquired . | . . . . . Parts Built . | . . . . . Authchips . | . . . . . Time . | . . . . . Total Part Build Rating . | . . . . . Parts Repaired 1 | . 1 . . . Time 26 | . 26 . . . Parts Recycled . | . . . . . Recycled Matter . | . . . . . Retrieved Matter . | . . . . . Retrieved Components 20 | . 20 . . . Parts Scanalyzed . | . . . . . Part Schematics Acquired . | . . . . . Parts Damaged . | . . . . . Bothacking | -11 -10 -10 -10 -9 ------------ Run | Yrd Mat Min Exi Min Used RIF Installer . | . . . . . Robots Hacked . | . . . . . Non-combat . | . . . . . Combat . | . . . . . Robot Hacks Applied . | . . . . . Relay Couplers Released . | . . . . . Fabnet Peak Effective % . | . . . . . Robots Rewired . | . . . . . Allies Hacked . | . . . . . Hacks Repelled . | . . . . . Allies | -11 -10 -10 -10 -9 -------- Run | Yrd Mat Min Exi Min Total Allies . | . . . . . Largest Group . | . . . . . Highest-Rated Group . | . . . . . Highest-Rated Ally . | . . . . . Total Orders . | . . . . . Ally Attacks . | . . . . . Total Damage . | . . . . . Kills . | . . . . . Allies Corrupted . | . . . . . Allies Melted . | . . . . . Intel | -11 -10 -10 -10 -9 ------- Run | Yrd Mat Min Exi Min Robot Analysis Total 2 | . 2 . . . Derelict Logs Recovered 1 | . . 1 . . Drone Launches . | . . . . . Drone Recoveries . | . . . . . Exploration | -11 -10 -10 -10 -9 ------------- Run | Yrd Mat Min Exi Min Turns Passed 6576 | 348 2315 2473 1438 2 Spaces Moved 2580 | 177 856 947 600 . Core 8 | 8 . . . . Treads 1964 | 169 786 409 600 . Legs 608 | . 70 538 . . Wheels . | . . . . . Hover . | . . . . . Flight . | . . . . . Fastest Speed 50 | 50 160 240 240 . Average Speed 231 | 160 218 251 240 . Slowest Speed 400 | 200 400 260 240 . Overloaded Moves . | . . . . . Propulsion Burnouts . | . . . . . Robots Hopped . | . . . . . Cave-ins Triggered . | . . . . . Exploration Rate (%) 60 | 7 96 100 92 5 Regions Visited 4 Branch Regions 3 Pre-discovered Areas 1 | . . 1 . . Known Exits Taken 1 | . 1 . . . Unknown Exits Taken 3 | 1 . 1 1 . Scrap Searched 1 | . . 1 . . Spaces Dug . | . . . . . Terrain Destroyed 82 | . 82 . . . Melee . | . . . . . Projectile . | . . . . . AOE 82 | . 82 . . . Terrain Rammed . | . . . . . Walls Destroyed . | . . . . . Machines Disabled . | . . . . . Actions | -11 -10 -10 -10 -9 --------- Run | Yrd Mat Min Exi Min Total 2951 | 219 1115 1017 599 1 Wait 145 | 17 100 28 . . Move 2576 | 176 855 946 599 . Hop . | . . . . . Pick Up 31 | 7 13 11 . . Fast Attach 15 | 7 7 1 . . Attach 5 | . 3 2 . . Detach 2 | . 2 . . . Swap 13 | . 8 4 . 1 Drop 20 | . 12 8 . . Fire 138 | 12 114 12 . . Melee . | . . . . . Ram . | . . . . . Kick 2 | . . 2 . . Crush 4 | . 1 3 . . Escape Stasis . | . . . . . Rewire . | . . . . . Trap . | . . . . . Miscellaneous . | . . . . . Route ------- -11/Scrapyard -10/Materials (discovered 4 exits: *Mat x2 / *Min x2) -10/Mines (discovered 4 exits: *Mat x2 / *Exi / [*Sub]) -10/Exiles -9/Mines History --------- Turn | Location | Event 27 | -11/Scrapyard | Discovered new exit (range 16) 349 | -11/Scrapyard | Entered Materials 350 | -10/Materials | Build established: Mutant 566 | -10/Materials | Repaired Lgt. Treads 638 | -10/Materials | Central database locked down 696 | -10/Materials | Discovered new exit (range 12) 951 | -10/Materials | Discovered new exit (range 12) 1522 | -10/Materials | Discovered new exit (range 15) 1718 | -10/Materials | Identified exit to Materials 2127 | -10/Materials | Core integrity fell below 50% 2153 | -10/Materials | Discovered new exit (range 13) 2184 | -10/Materials | Identified exit to Mines 2414 | -10/Materials | Core integrity fell below 20% 2444 | -10/Materials | Lost 3 parts (2p1n) 2664 | -10/Materials | Entered Mines 2668 | -10/Mines | Met a Derelict bent on vengeance 2913 | -10/Mines | Discovered exit to Materials (range 13) 4098 | -10/Mines | Joined a pair of Derelicts in attacking an 0b10 outpost 4348 | -10/Mines | Discovered exit to Materials (range 7) 4375 | -10/Mines | Met a Derelict shopkeep closing up shop 4888 | -10/Mines | Discovered new exit (range 6) 5120 | -10/Mines | Deemed a non-threat by the Exiles lab entrance 5123 | -10/Mines | Discovered new exit (range 5) 5137 | -10/Mines | Entered Exiles 5137 | -10/Exiles | Found Exiles lab abandoned 6525 | -10/Exiles | Discovered new exit (range 14) 6575 | -10/Exiles | Entered Mines 6577 | -9/Mines | Destroyed by G-34 Mercenary with Small Laser Last Messages --------------- 05498_ Connecting with DEC's Terminal... >>Record! "DEC-BYE" For the record, I voted to stay and build some amazing defenses, but HEX said this is a lab, not a battlefield. Anyway, you're too late, MAIN.C, Warlord sends his regards. 05553_ Connecting with HEX's Terminal... >>Record! "HEX-BYE" To anyone looking for us: Don't. 05589_ Connecting with EX-Vault Access... 06362_ Connecting with EX-Message Board... >>Record! "MSG999999-FU" MAIN.C you're pretty crappy as far as evil overlords go. Imprinter is probably going to wreck your life and you're too stupid to see it coming. 06525_ EXIT=FOUND LOCATION=UNKNOWN GOAL=ESCAPE 06576_ T-07 Excavator is excavating. Map ----- +----------------------------------------------------+ | ???????????????????????????????????????? | | ???????????????????????????????????????? | | ???????????????????????????????????????? | | ???????????????????????????????????????? | | ???????????????????????????????????????? | | ???????????????????????????????????????? | | ???????????????????????????????????????? | | ???????????????????????????????????????? | | ???????????????????????????????????????? | | ???????????????????????????????????????? | | ???????????????????????????????????????? | | ???????????????????????????????????????? | | ???????????????????????????????????????? | | ???????????????????????????????????????? | | ???????????????????????????????????????? | | ???????????????????????????????????????? | | ???????????????????????????????????????? | | ???????????????????????????????????????? | | ???????????????????????????????????????? | | ????????????????##??#??????????????????? | | ???????????????## ## ?????????????????? | | ???????????????# #????????????????? | | ??????????? ### g ######??????????? | | ?????????? l ##?????????? | | ????????????? g #?????????? | | ???????????????????# @ #?????????? | | ???????????????????## ###?????????? | | ????????????????????# ##???????????? | | ??????????????????? #????????????? | | ?????????????????# ### #????????????? | | ?????????????????#???## #????????????? | | ??????????????????????# t????????????? | | ??????????????????????# ????????????? | | ??????????????????????# #????????????? | | ?????????????????????? #?????????????? | | ?????????????????????? #??????????????? | | ??????????????????????##???????????????? | | ???????????????????????????????????????? | | ???????????????????????????????????????? | | ???????????????????????????????????????? | | | | | | | | | | | | | | | | | | | | | +----------------------------------------------------+ Best States ------------- Heat Dissipation 25 Energy Generation 14 Energy Capacity 265 Matter Stores 300 Matter Capacity 300 Sight Range 16 Terrain Scan Range 16 Terrain Scan Density 10 Evasion (%) 40 Targeting Accuracy 5 Recoil Reduction 2 Item Schematics ----------------- None Robot Schematics ------------------ None Fabricated ------------ Nothing Alien Tech Used ----------------- None Achievements -------------- None Challenges ------------ None Game ------ Seed ThiefDeepField Manual? 0 Play Time 00:47:33 Cumulative 9.4 hours Start 2024.04.11 @ 20:47:11 End 2024.04.21 @ 16:50:02 Sessions 6 Manual Loads 0 Difficulty Rogue Special Mode None Game No. 10 Rogue 10 Adventurer 0 Explorer 0 Win Type - Total 1 Types 1/0/0/0/0/0/0/0/0 Lore% 18 Gallery% 15 Achievement% 19 Wizard Run 0 Options --------- Layout 1 ASCII 0 Keyboard 0 Movement Arrows Keybinds 0 Fullscreen 1 Font 24/Smallcaps Map View 50x35 Zoom Use 0% Tactical HUD 1 Map Filters NONE Filters NONE Steam 1 RUN: 9e3f8bb1-f916-4216-9da4-4015b10ebe61